Cogmind - Beta 9.4 *** ADVENTURER MODE // 2020.06.16 @ 14:42:18 Player: Scyralis Result: Destroyed by S-10 Pest with Light Assault Rifle Performance ------------- Evolutions (1) 500 Regions Visited (2) 400 Robots Destroyed (14) 70 Value Destroyed (205) 205 Prototype IDs (0) 0 Alien Tech Used (0) 0 Bonus (0) 0 TOTAL SCORE: 1175 Bonus ------- None Cogmind --------- Core Integrity 0/400 Matter 300/300 Energy 500/500 System Corruption 0% Temperature Cool (0) Movement Core (650) Ox12 Location -9/Materials Parts ------- > --- POWER (1) -------- (None) > --- PROPULSION (2) --- (None) > --- UTILITY (4) ------ High-capacity Storage Unit High-capacity Battery Power Shielding > --- WEAPON (2) ------- (None) > --- INVENTORY (12) --- ECM Suite Peak State ------------ > --- POWER ------------ Ion Engine > --- PROPULSION ------- Wheel Compact Wheel > --- UTILITY ---------- Heat Sink High-capacity Storage Unit High-capacity Battery Power Shielding > --- WEAPON ----------- EM Pulse Gun EM Pulse Gun > --- INVENTORY -------- ECM Suite [Rating: 9] Favorites ----------- Power Ion Engine Engine Ion Engine Propulsion Compact Wheel Wheel Compact Wheel Utility Small Storage Unit Device Heat Sink Storage Small Storage Unit Protection Power Shielding Weapon EM Pulse Gun Energy Gun EM Pulse Gun Ballistic Gun Light Assault Rifle Build | -11 -10 -9 ------- Run | Scr Mat Mat Slots Evolved 2 | . . 2 Power . | . . . Propulsion . | . . . Utility 2 | . . 2 Weapon . | . . . Parts Attached 13 | 6 5 2 Power 1 | 1 . . Engine 1 | 1 . . Core . | . . . Reactor . | . . . Propulsion 2 | 2 . . Treads . | . . . Leg . | . . . Wheel 2 | 2 . . Hover . | . . . Flight . | . . . Utility 6 | 1 3 2 Device 1 | . . 1 Storage 4 | 1 3 . Processor . | . . . Hackware . | . . . Protection 1 | . . 1 Artifact . | . . . Weapon 4 | 2 2 . Energy Gun 2 | . 2 . Energy Cannon . | . . . Ballistic Gun 2 | 2 . . Ballistic Cannon . | . . . Launcher . | . . . Special Weapon . | . . . Impact Weapon . | . . . Slashing Weapon . | . . . Piercing Weapon . | . . . Special Melee Weapon . | . . . Unidentified Prototypes . | . . . Parts Lost 6 | . . 6 Power 1 | . . 1 Propulsion 2 | . . 2 Utility 1 | . . 1 Weapon 2 | . . 2 Highest Loss Streak 6 | . . 6 Average Slot Usage (%) 91 | . 98 77 Engine 12 | . 14 8 Wheel 23 | . 28 15 Device 2 | . . 8 Storage 25 | . 26 22 Protection 3 | . . 11 Energy Gun 15 | . 17 11 Ballistic Gun 7 | . 10 . Naked Turns . | . . . Heaviest Build 47 | 11 45 47 Greatest Support 26 | 26 26 26 Greatest Overweight (x) 14 | . 1 14 Average Overweight (x) . | . . 1 Largest Inventory Capacity 12 | 6 12 12 Average Capacity 8 | 5 7 12 Most Carried 4 | 4 3 2 Average Carried 1 | . 1 1 Final Capacity 12 | 6 12 12 Final Carried 3 | . 3 1 Class Distribution -------------------- 100% | Mutant Dominant Class ---------------- Mutant | -10/Materials Mutant | -9/Materials Resources | -11 -10 -9 ----------- Run | Scr Mat Mat Matter Collected 350 | 272 58 20 Remotely . | . . . Salvage Created 410 | 103 191 116 Parts 26 | 4 11 11 Haulers Intercepted . | . . . Recyclers Shooed 1 | . 1 . Parts Field Recycled . | . . . Retrieved Matter . | . . . Parts Self-Destructed . | . . . Prevented . | . . . Kills | -11 -10 -9 ------- Run | Scr Mat Mat Combat Hostiles Destroyed 7 | . 4 3 Guns 4 | . 2 2 AOE 3 | . 2 1 Classes Destroyed 8 | 2 4 2 Worker 1 | . . 1 Builder 1 | . 1 . Tunneler 1 | 1 . . Recycler 2 | 1 1 . Operator 1 | . . 1 Watcher 1 | . 1 . Swarmer 5 | . 3 2 Grunt 2 | . 1 1 Best Kill Streak 5 | 1 5 3 Combat Bots Only 3 | . 3 3 Max Kills in Single Turn 4 | 1 4 1 Gunslinging . | . . . Exploded 2 | . 2 1 Melee . | . . . Uniques/NPCs Destroyed . | . . . Combat | -11 -10 -9 -------- Run | Scr Mat Mat Damage Taken 832 | . 101 731 Core 432 | . 26 406 Absorbed by Shields . | . . . Core Remaining (%) 94 | 100 89 . Volleys Fired 29 | 6 10 13 Largest 2 | 2 2 2 Hottest 80 | 40 80 80 Shots Fired 49 | 12 20 17 Gun 49 | 12 20 17 Cannon . | . . . Launcher . | . . . Special . | . . . Kinetic 20 | 12 8 . Thermal . | . . . Explosive . | . . . Electromagnetic 29 | . 12 17 Robot Hit Streak 12 | 6 12 7 Robot Miss Streak 6 | 1 1 6 Penetration Max . | . . . Secondary Targets . | . . . Shots Hit Robots 31 | 8 14 9 Core Hits 19 | 4 10 5 Critical Hits 1 | . 1 . Critical Kills . | . . . Critical Parts Destroyed 1 | . 1 . Melee Attacks . | . . . Impact . | . . . Slashing . | . . . Piercing . | . . . Sneak Attacks . | . . . Combat Hostiles . | . . . Follow-up Attacks . | . . . Damage Inflicted 661 | 61 425 175 Guns 391 | 61 184 146 Cannons . | . . . Explosions 270 | . 241 29 Melee . | . . . Ramming . | . . . Kinetic 117 | 61 56 . Thermal 106 | . 77 29 Explosive 164 | . 164 . Electromagnetic 274 | . 128 146 Impact . | . . . Slashing . | . . . Piercing . | . . . Highest Corruption . | . . . Average Corruption . | . . . Corruption Purged . | . . . Overload Shots . | . . . Overflow Damage 17 | . 11 6 Projectiles . | . . . Explosions 17 | . 11 6 Melee . | . . . Knockbacks . | . . . Impact . | . . . Kinetic . | . . . Secondary . | . . . Self-Inflicted Damage 72 | . 72 . Shots 2 | . 2 . Rammed 3 | . . 3 Targets Rammed 3 | . . 3 Kicked . | . . . Crushed . | . . . Highest Temperature 54 | . 54 . Average Temperature 23 | . 23 . Received Heat Transfer 189 | . 12 177 Siege Activations . | . . . Robots Corrupted . | . . . Combat Hostiles . | . . . Parts Fried 1 | . 1 . Impact Corruptions . | . . . Robots Melted . | . . . Combat Hostiles . | . . . Parts Melted . | . . . Heat Transferred 100 | . 50 50 Parts Sabotaged . | . . . Parts Stolen . | . . . Parts Stripped . | . . . Power Chain Reactions 2 | . 1 1 Missiles Intercepted . | . . . Alert | -11 -10 -9 ------- Run | Scr Mat Mat Peak Influence 209 | 10 209 179 Average Influence 87 | 3 98 119 Maximum Alert Level 1 | . 1 . Low Security (%) 93 | 100 88 100 Level 1 6 | . 11 . Level 2 . | . . . Level 3 . | . . . Level 4 . | . . . Level 5 . | . . . High Security . | . . . Max Security . | . . . Squads Dispatched 2 | . 1 1 Investigation 1 | . 1 . Extermination . | . . . Reinforcement 1 | . . 1 Assault . | . . . Garrison . | . . . Intercept . | . . . Construction Impeded . | . . . Haulers Reinforced . | . . . Stealth | -11 -10 -9 --------- Run | Scr Mat Mat Distress Signals 2 | . 1 1 Communications Jammed . | . . . Distress Signals . | . . . Times Spotted 21 | . 7 14 Peak Tracking Total 7 | . 5 7 Tactical Retreats 1 | . . 1 Traps | -11 -10 -9 ------- Run | Scr Mat Mat Traps Triggered 2 | . 1 1 Indirectly . | . . . Trap Hack Attempts . | . . . Triggered . | . . . Disarmed . | . . . Reprogrammed . | . . . Reused . | . . . Traps Extracted . | . . . Installed . | . . . Triggered . | . . . Machines | -11 -10 -9 ---------- Run | Scr Mat Mat Machines Disabled 3 | . 2 1 Max in Single Turn 2 | . 2 1 Machines Sabotaged . | . . . Garrisons Compromised . | . . . Overloaded Fab Kills . | . . . Fab Network Shutdowns . | . . . Hacking | -11 -10 -9 --------- Run | Scr Mat Mat Machines Accessed 5 | . 5 . Terminals 5 | . 5 . Fabricators . | . . . Repair Stations . | . . . Recycling Units . | . . . Scanalyzers . | . . . Garrison Access . | . . . Total Hacks 24 | . 24 . Successful 18 | . 18 . Failed 6 | . 6 . Catastrophic 2 | . 2 . Database Lockouts . | . . . Manual . | . . . Terminals 24 | . 24 . Fabricators . | . . . Repair Stations . | . . . Recycling Units . | . . . Scanalyzers . | . . . Garrison Access . | . . . Terminal Hacks 18 | . 18 . Record 10 | . 10 . Robot Analysis 2 | . 2 . Level Access Points 1 | . 1 . Scanalyzer Index 1 | . 1 . Locate Traps 2 | . 2 . Registered Prototypes 1 | . 1 . Zone Layout 1 | . 1 . Fabricator Hacks . | . . . Repair Station Hacks . | . . . Recycling Unit Hacks . | . . . Scanalyzer . | . . . Garrison Access Hacks . | . . . Unauthorized Hacks . | . . . Terminals . | . . . Fabricators . | . . . Repair Stations . | . . . Recycling Units . | . . . Scanalyzers . | . . . Garrison Access . | . . . Data Cores Recovered . | . . . Used . | . . . Hacking Detections 4 | . 4 . Full Trace Events 4 | . 4 . Feedback Events . | . . . Feedback Blocked . | . . . Robot Schematics Acquired . | . . . Robots Built . | . . . Matter . | . . . Time . | . . . Total Robot Build Rating . | . . . Part Schematics Acquired . | . . . Parts Built . | . . . Matter . | . . . Time . | . . . Total Part Build Rating . | . . . Parts Repaired . | . . . Time . | . . . Parts Recycled . | . . . Recycled Matter . | . . . Retrieved Matter . | . . . Retrieved Components . | . . . Parts Scanalyzed . | . . . Part Schematics Acquired . | . . . Parts Damaged . | . . . Bothacking | -11 -10 -9 ------------ Run | Scr Mat Mat Used RIF Installer . | . . . Robots Hacked . | . . . Non-combat . | . . . Combat . | . . . Robot Hacks Applied . | . . . Relay Couplers Released . | . . . Robots Rewired . | . . . Allies Hacked . | . . . Hacks Repelled . | . . . Allies | -11 -10 -9 -------- Run | Scr Mat Mat Total Allies . | . . . Largest Group . | . . . Highest-Rated Group . | . . . Highest-Rated Ally . | . . . Total Orders . | . . . Ally Attacks . | . . . Total Damage . | . . . Kills . | . . . Allies Corrupted . | . . . Allies Melted . | . . . Intel | -11 -10 -9 ------- Run | Scr Mat Mat Robot Analysis Total 2 | . 2 . Derelict Logs Recovered . | . . . Drone Launches . | . . . Drone Recoveries . | . . . Exploration | -11 -10 -9 ------------- Run | Scr Mat Mat Turns Passed 377 | 67 204 106 Spaces Moved 264 | 47 175 42 Core 9 | 6 . 3 Treads . | . . . Legs . | . . . Wheels 255 | 41 175 39 Hover . | . . . Flight . | . . . Fastest Speed 50 | 50 90 100 Average Speed 98 | 84 91 141 Slowest Speed 750 | 90 100 750 Overloaded Moves . | . . . Propulsion Burnouts . | . . . Robots Hopped . | . . . Cave-ins Triggered . | . . . Exploration Rate (%) 14 | 4 32 7 Regions Visited 2 Branch Regions . Pre-discovered Areas . | . . . Known Exits Taken 1 | . 1 . Unknown Exits Taken 1 | 1 . . Scrap Searched . | . . . Spaces Dug . | . . . Terrain Destroyed 28 | . 25 3 Melee . | . . . Projectile . | . . . AOE 28 | . 25 3 Actions | -11 -10 -9 --------- Run | Scr Mat Mat Total 325 | 64 201 60 Wait . | . . . Move 262 | 46 174 42 Hop . | . . . Pick Up 14 | 6 8 . Fast Attach . | . . . Attach 11 | 6 3 2 Detach . | . . . Swap 2 | . 2 . Drop 4 | . 4 . Fire 29 | 6 10 13 Melee . | . . . Ram 3 | . . 3 Kick . | . . . Crush . | . . . Escape Stasis . | . . . Rewire . | . . . Trap . | . . . Miscellaneous . | . . . Route ------- -11/Scrapyard -10/Materials (discovered 3 exits: *Mat x3) -9/Materials History --------- Turn | Location | Event 37 | -11/Scrapyard | Discovered new exit (range 15) 68 | -11/Scrapyard | Entered Materials 145 | -10/Materials | Identified exit to Materials 272 | -10/Materials | Entered another Materials area 272 | -9/Materials | Evolved 2 slots: Utility x2 313 | -9/Materials | Build established: Mutant 366 | -9/Materials | Core integrity fell below 50% 374 | -9/Materials | Core integrity fell below 20% 378 | -9/Materials | Destroyed by S-10 Pest with Light Assault Rifle Last Messages --------------- 00340_ R-06 Scavenger collects Flight Unit. 00343_ K-01 Serf collects debris. 00343_ Wheel destroyed. 00343_ Com. Wheel destroyed. 00344_ K-01 Serf collects debris. 00344_ R-06 Scavenger collects Lgt. Assault Rifle. 00347_ K-01 Serf collects debris. 00348_ R-06 Scavenger collects Lgt. Assault Rifle. 00351_ K-01 Serf collects debris. 00351_ Ion Engine destroyed. 00352_ Heat Sink destroyed. 00352_ R-06 Scavenger collects Lgt. Ion Engine. 00354_ K-01 Serf collects debris. 00354_ S-10 Pest destroyed. 00364_ Slammed into S-10 Pest. 00367_ K-01 Serf collects debris. 00369_ G-34 Mercenary IFF system glitched. 00370_ Slammed into S-10 Pest. 00373_ K-01 Serf collects debris. 00377_ Slammed into S-10 Pest. Map ----- +----------------------------------------------------+ | ??????????????????????????????????????? | | ??????????????????????????????????????? | | ??????????????????????????????????????? | | ??????????????????????????????????????? | | ??????????????????????????????????????? | | ??????????????????????????????????????? | | ??????????????????????????????????????? | | ???????????????????????#####??????????? | | ???????????????????????# ##########?? | | ???????????????????????# # #?? | | ???????????????????????# # """ #?? | | ???????????????????????# # """ #?? | | ???????????????????????# # "" #?? | | ???????????????????????# + #?? | | ???????????????????????# # = = #?? | | ???????????????????????# # "T" #?? | | ???????????????????????# # """ #?? | | ???????????????????????# # #?? | | ???????????????????????# ##########?? | | ???????????????????????# #??????????? | | ???????????????????????# ##########?? | | ???????????????????????# # #?? | | ???????????????????????# # #?? | | ???????????????????????# # #?? | | ??????????????????????## s# #?? | | ?????????####+#########;s@%+% #?? | | ?????????# !%=[ = g Y# #?? | | ?????????# [*%*^ = % s # #?? | | ?????????# % # #?? | | ?????????# ##########;;# # #?? | | ??????????????????? ### ##########?? | | ????????????????? ??# #??????????? | | ???????????????? ??# #??????????? | | ?????????????? ??# ??????????? | | ?????????????########??# ?????????? | | ???????????????????????#w ]????????? | | ???????????????????????# ]]???????? | | ???????????????????????# !!#??????? | | ???????????????????????# !!#??????? | | ???????????????????????/ #####??????? | | ???????????????????????? #??????????? | | ???????????????????????? #??????????? | | ???????????????????????? #??????????? | | ???????????????????????? ???????????? | | ??????????????????????????????????????? | | ??????????????????????????????????????? | | ??????????????????????????????????????? | | ??????????????????????????????????????? | | ??????????????????????????????????????? | | ??????????????????????????????????????? | +----------------------------------------------------+ Best States ------------- Heat Dissipation 38 Energy Generation 10 Energy Capacity 650 Matter Stores 300 Matter Capacity 350 Sight Range 16 Terrain Scan Density 10 Resistance: KI 20 Resistance: TH 20 Resistance: EX 20 Resistance: EM 20 Resistance: I 20 Resistance: S 20 Resistance: P 20 Power Shielding 33 Evasion (%) 42 Offensive Hacking 10 Item Schematics ----------------- None Robot Schematics ------------------ None Fabricated ------------ Nothing Alien Tech Used ----------------- None Achievements -------------- None Challenges ------------ None Game ------ Seed TransportReflectiveAnalyzer Manual? 0 Play Time 00:04:13 Cumulative 10.2 hours Start 2020.06.16 @ 14:39:03 End 2020.06.16 @ 14:42:18 Sessions 1 Manual Loads 0 Difficulty Adventurer Special Mode None Game No. 21 Rogue 0 Adventurer 21 Explorer 0 Win Type - Total 0 Types 0/0/0/0/0/0/0 Lore% 12 Gallery% 28 Achievement% 19 Wizard Run 0 Options --------- ASCII 0 Keyboard 0 Movement Numpad Keybinds 0 Fullscreen 0 Font 12/Smallcaps Map View 83x54 Tactical HUD 1 Map Filters NONE Filters NONE Steam X RUN: 45e11f1e-bc33-4319-8d78-834c45535f99